bitfinex/quotes_ETHUSD_20241101
["timestamp","ask_amount","ask_price","bid_price","bid_amount"]
[1730488026756,3.0,2512.5,2512.4,3.98024]
[1730488027064,3.0,2512.7,2512.4,3.98024]
[1730488027369,3.68026053,2512.7,2512.3,3.98029]
[1730488027582,3.68026053,2512.7,2512.5,3.97998]
[1730488027755,3.0,2512.7,2512.5,3.97998]
[1730488027959,6.548786,2512.6,2512.5,3.97998]
[1730488028271,3.0,2512.5,2512.4,3.98013]
[1730488028470,4.35957053,2513.0,2512.6,3.97994]
[1730488028471,3.0,2512.7,2512.6,3.97994]
[1730488028710,3.0,2513.3,2512.9,3.9793]
[1730488028998,6.80260528,2513.1,2512.7,3.97964]
[1730488029361,6.80260528,2513.1,2512.8,3.97955]
[1730488029561,3.0,2512.9,2512.8,3.97955]
[1730488029889,10.160001,2512.9,2512.7,3.97968]
[1730488030207,3.0,2512.9,2512.8,3.97962]
[1730488030497,0.72260053,2513.2,2512.9,3.97946]
[1730488030698,3.0,2513.3,2513.1,3.97905]
[1730488031004,3.0,2513.1,2512.9,3.97936]
[1730488031176,3.0,2513.3,2512.9,3.97936]
[1730488031869,3.0,2513.3,2512.8,3.97959]
[1730488032056,3.0,2513.3,2512.8,7.95909]
[1730488032270,3.80260528,2513.1,2512.8,3.9795]
[1730488032470,3.0,2513.0,2512.8,3.9795]
[1730488032874,3.0,2513.0,2512.8,7.95906]
[1730488033107,3.0,2513.0,2512.9,3.97946]
[1730488033318,4.22600528,2513.7,2513.4,3.97864]
[1730488033552,4.22600528,2513.7,2513.5,3.97843]
[1730488033553,8.40459453,2513.6,2513.5,3.97843]
[1730488034178,5.02150553,2513.6,2513.5,3.97843]
[1730488034609,4.22600528,2514.0,2513.8,3.97798]
[1730488034772,4.22600528,2514.0,2513.7,3.97812]
[1730488034773,9.480688,2513.9,2513.7,3.97812]
[1730488034976,3.80260528,2514.0,2513.7,3.97812]
[1730488035208,3.80260528,2514.0,2513.8,3.97802]
[1730488035415,10.197438,2513.9,2513.8,7.95604]
[1730488035579,8.892683,2513.9,2513.8,3.97802]
[1730488035779,3.0,2513.8,2513.6,3.97825]
[1730488036080,6.97844,2513.6,2513.1,3.97906]
[1730488036279,6.80260528,2513.2,2513.1,3.97906]
[1730488037024,3.0,2513.1,2512.9,3.97935]
[1730488037175,3.0,2513.1,2513.0,3.9793]
[1730488037685,2.89309452,2514.4,2513.7,3.97818]
[1730488037686,4.26952883,2513.9,2513.7,3.97818]
[1730488037893,9.164155,2513.8,2513.5,3.9785]
[1730488038231,3.0,2513.7,2513.5,3.9785]
[1730488038546,3.0,2513.6,2513.3,3.97879]
[1730488038826,3.0,2513.6,2513.4,3.97865]
[1730488039024,3.0,2513.6,2513.4,3.9786]
[1730488039025,17.604564,2513.5,2513.4,3.9786]
[1730488039179,13.999984,2513.5,2513.4,3.9786]
[1730488039847,8.060886,2513.5,2513.4,3.9786]
[1730488040175,3.0,2513.5,2513.4,3.9786]
[1730488040410,3.0,2513.9,2513.8,3.97804]
[1730488040613,5.831815,2513.9,2513.8,3.97804]
[1730488041526,4.22600528,2514.3,2513.6,7.9567]
[1730488041812,3.80260528,2514.3,2514.2,3.9774]
[1730488042020,4.22520581,2514.3,2514.2,3.9774]
[1730488042434,17.31450381,2514.3,2514.2,3.9774]
[1730488042582,9.43431528,2514.3,2514.2,3.9774]
[1730488042916,9.90148128,2514.3,2514.2,3.9774]
[1730488043120,3.0,2514.2,2513.5,0.7708]
[1730488043331,3.0,2514.2,2513.8,3.9779]
[1730488043332,3.0,2513.9,2513.8,3.9779]
[1730488043851,3.0,2514.2,2514.1,3.97747]
[1730488044014,4.22600528,2514.6,2514.1,3.385084]
[1730488044214,4.22520581,2514.6,2514.5,3.97693]
[1730488044415,6.488753,2514.5,2514.4,3.97707]
[1730488045014,6.488753,2514.5,2514.2,3.97731]
[1730488045414,3.0,2514.4,2514.2,3.97731]
[1730488045640,15.516201,2514.3,2514.2,3.97731]
[1730488045857,3.0,2514.5,2514.3,3.97725]
[1730488046029,15.442486,2514.4,2514.3,3.97725]
[1730488046235,3.0,2514.3,2514.2,3.97731]
[1730488046454,18.98541128,2514.3,2514.2,3.9774]
[1730488046625,10.50288828,2514.3,2514.2,3.9774]
[1730488047572,3.72252058,2514.5,2514.2,3.9774]
[1730488047721,3.0,2514.5,2514.1,3.97742]
[1730488048168,3.0,2514.5,2514.2,3.97726]
[1730488048325,3.0,2514.5,2514.2,3.97727]
[1730488048521,3.0,2514.5,2514.1,3.97742]
[1730488048743,3.0,2514.2,2514.1,3.97756]
[1730488049661,3.0,2514.2,2514.0,3.97769]
[1730488049862,3.0,2514.2,2513.8,3.97804]
[1730488050160,3.0,2513.8,2513.6,3.97821]
[1730488050364,3.0,2513.8,2513.5,3.97844]
[1730488050525,4.07803353,2513.8,2513.5,3.97844]
[1730488050729,4.07803353,2513.8,2513.6,3.97828]
[1730488050972,4.07803353,2513.8,2513.6,3.97825]
[1730488051348,4.07803353,2513.8,2513.7,3.97819]
[1730488051543,4.07803353,2513.8,2513.0,3.97915]
[1730488051544,4.07803353,2513.8,2513.1,0.7633]
[1730488051779,4.07803353,2513.8,2512.2,3.98056]
[1730488051780,3.0,2513.4,2513.0,3.97921]
[1730488051975,3.0,2513.4,2513.1,3.97913]
[1730488051976,3.80260528,2513.2,2513.1,3.97913]
[1730488052379,3.0,2513.1,2512.8,3.97956]
[1730488052559,3.97878,2513.4,2513.1,3.97911]
[1730488052560,3.0,2513.4,2513.1,3.97911]
[1730488052994,3.0,2513.4,2513.2,3.97886]
[1730488053163,3.68026053,2513.4,2513.2,3.97886]
[1730488053486,3.0,2513.2,2513.0,3.97923]
[1730488053650,3.80260528,2513.2,2512.9,3.97946]
[1730488053849,3.80260528,2513.2,2512.8,3.97951]
[1730488053850,3.0,2513.1,2512.8,3.97951]
[1730488054049,3.0,2513.1,2513.0,3.9793]
[1730488054285,10.176059,2513.1,2513.0,3.9793]
[1730488054490,0.68026053,2513.4,2513.0,3.9793]
[1730488054659,0.44828658,2513.3,2513.1,3.97912]
[1730488054886,3.0,2513.4,2513.3,3.97883]
[1730488055050,3.80260528,2513.8,2513.6,3.97835]
[1730488055250,6.731284,2513.7,2513.5,3.97849]
[1730488055486,16.477242,2513.7,2513.5,3.97849]
[1730488055685,3.828452,2513.6,2513.5,3.97849]
[1730488055878,4.612817,2513.7,2513.6,3.97835]
[1730488056188,3.396817,2513.7,2513.6,3.97835]
[1730488056492,7.40184,2513.6,2513.1,3.97901]
[1730488056790,7.40184,2513.6,2513.0,3.97923]
[1730488056791,3.0,2513.2,2513.0,3.97923]
[1730488057024,12.646606,2513.1,2513.0,3.97923]
[1730488057297,7.549521,2513.1,2513.0,3.97923]
[1730488058684,7.549521,2513.1,2512.9,3.97941]
[1730488058886,3.0,2513.0,2512.9,3.97946]
[1730488059215,1.13521263,2513.1,2512.9,3.97938]
[1730488059514,1.13521263,2513.1,2512.9,7.95873]
[1730488059911,1.13521263,2513.1,2512.9,3.97935]
[1730488060116,1.13521263,2513.1,2512.9,7.95874]
[1730488060325,1.13521263,2513.1,2512.9,3.97935]
[1730488060512,3.0,2512.9,2512.2,0.7617]
[1730488060813,3.0,2512.9,2512.3,0.07959513]
[1730488061031,0.41352126,2513.0,2512.8,3.97962]
[1730488061191,17.526104,2512.9,2512.4,3.98013]
[1730488061516,3.80260528,2512.7,2512.4,3.98013]
[1730488061726,3.0,2512.6,2512.5,3.98007]
[1730488062021,4.21612654,2513.0,2512.4,3.98013]
[1730488062204,3.0,2512.9,2512.8,3.97949]
[1730488062419,6.979336,2512.9,2512.8,3.97949]
[1730488063640,5.49242,2512.9,2512.8,3.97949]
[1730488066298,6.46327465,2512.9,2512.6,3.97984]
[1730488066502,3.97085465,2512.9,2512.6,3.97984]
[1730488067137,3.97085465,2512.9,2512.7,3.97967]
[1730488067294,3.97085465,2512.9,2512.8,3.97962]
[1730488067499,13.90992565,2512.9,2512.8,3.97962]
[1730488067899,13.90992565,2512.9,2512.5,3.97995]
[1730488068101,1.77125309,2512.8,2512.5,7.95998]
[1730488068337,3.97085465,2512.9,2512.5,7.95998]
[1730488068659,2.9705545,2512.8,2512.5,7.95998]
[1730488068934,5.9705545,2512.8,2512.7,3.97978]
[1730488069143,3.0,2513.0,2512.9,3.97946]
[1730488069300,12.166473,2513.0,2512.9,3.97946]
[1730488071110,9.278868,2513.0,2512.9,3.97946]
[1730488073599,5.985198,2513.0,2512.9,3.97946]
[1730488074852,5.985198,2513.0,2512.8,3.97955]
[1730488075162,15.39519325,2512.9,2512.8,3.97955]
[1730488075460,12.47507325,2512.9,2512.8,3.97955]
[1730488075820,9.359517,2512.9,2512.8,3.97955]
[1730488080228,3.0,2512.8,2512.6,3.9798]
[1730488080540,5.9705545,2512.7,2512.6,3.9798]
[1730488081802,3.0,2512.6,2512.4,3.98024]
[1730488082090,3.0,2512.4,2512.2,3.98055]
[1730488082292,3.0,2512.2,2511.8,0.7989]
[1730488082450,2.37972545,2512.1,2512.0,3.98079]
[1730488082651,3.0,2512.2,2511.9,3.98089]
[1730488082949,6.9509845,2512.3,2511.8,3.98112]
[1730488082950,3.0,2511.9,2511.8,3.98112]
[1730488083395,5.9705545,2512.3,2512.1,3.98071]
[1730488083599,5.9705545,2512.3,2511.9,3.98093]
[1730488083600,16.249941,2512.2,2511.9,3.98093]
[1730488083898,5.9705545,2512.0,2511.9,3.98093]
[1730488084100,3.0,2512.2,2512.1,3.98073]
[1730488084299,5.074251,2512.2,2512.1,3.98073]
[1730488084451,3.0,2512.2,2512.1,3.98073]
[1730488084654,0.59705545,2512.6,2512.4,3.98017]
[1730488084655,3.0,2512.5,2512.4,3.98017]
[1730488084889,8.702287,2512.5,2512.4,3.98017]
[1730488085092,7.93549,2512.5,2512.4,3.98017]
[1730488085550,9.02609445,2512.5,2512.1,3.9806]
[1730488085752,5.9705545,2512.2,2512.1,3.9806]
[1730488085955,3.0,2512.1,2511.5,0.7523]
[1730488086189,5.9705545,2511.8,2511.7,3.98127]
[1730488086359,3.0,2512.0,2511.9,3.98101]
[1730488086570,6.26480945,2512.0,2511.9,3.98101]
[1730488086770,5.667754,2512.0,2511.9,3.98101]
[1730488087095,5.667754,2512.0,2511.9,3.791204]
[1730488087298,3.0,2512.3,2512.2,3.98057]
[1730488087450,9.568616,2512.3,2512.2,3.98057]
[1730488088491,11.826226,2512.3,2512.2,3.98057]
[1730488088822,11.826226,2512.3,2511.9,3.98105]
[1730488088823,13.4149645,2512.3,2511.9,3.98105]
[1730488088969,5.9705545,2512.1,2512.0,3.98086]
[1730488089469,10.0099545,2512.1,2512.0,3.98086]
[1730488089670,3.0,2512.3,2512.2,3.98054]
[1730488089907,6.777826,2512.3,2512.2,3.98054]
[1730488090588,5.949735,2512.3,2512.2,3.98054]
[1730488091591,5.949735,2512.3,2512.2,3.98054]
[1730488091787,6.84176395,2512.3,2512.2,3.98054]
[1730488092119,6.84176395,2512.3,2512.0,3.98079]
[1730488092301,2.9705545,2512.1,2512.0,3.98079]
[1730488092825,5.9705545,2512.1,2511.9,3.98103]
[1730488093027,3.0,2512.0,2511.9,3.98103]
[1730488093391,7.664926,2512.0,2511.9,3.98103]
[1730488093627,8.72847405,2512.0,2511.8,3.98111]
[1730488093822,4.06354805,2512.0,2511.9,3.98105]
[1730488094131,19.57277105,2512.0,2511.8,3.9811]
[1730488094422,21.461031,2511.9,2511.8,3.98111]
[1730488094608,11.96987436,2511.9,2511.8,3.98111]
[1730488094814,9.120361,2511.9,2511.8,3.98111]
[1730488095532,1.31542895,2512.3,2512.2,3.98057]
[1730488095533,3.0,2512.3,2512.2,3.98057]
[1730488095828,11.052331,2512.3,2512.2,3.98057]
[1730488096010,6.905331,2512.3,2512.2,3.98057]
[1730488096719,6.905331,2512.3,2511.8,0.8325]
[1730488097023,3.0,2512.3,2512.2,3.98057]
[1730488097212,6.813221,2512.3,2512.2,3.98057]
[1730488097419,2.9705545,2512.7,2512.5,3.98009]
[1730488097730,5.378231,2512.6,2511.8,0.81]
[1730488097903,2.9705545,2512.4,2512.3,3.98041]
[1730488098594,8.2432665,2512.4,2512.3,3.98041]
[1730488098995,5.9705545,2512.4,2512.3,3.98041]
[1730488099209,3.0,2512.6,2512.5,3.98006]
[1730488099499,7.255485,2512.6,2512.5,3.98006]
[1730488099718,8.20287179,2512.6,2512.4,3.98019]
[1730488100024,17.767887,2512.5,2512.4,3.98019]
[1730488100588,3.0,2512.4,2512.0,3.98075]
[1730488100788,3.0,2512.4,2511.8,4.79112]
[1730488100789,3.0,2512.2,2511.9,3.98094]
[1730488101019,6.98058,2512.2,2511.8,3.98112]
[1730488101231,3.0,2511.9,2511.8,3.98112]
[1730488102839,5.08996134,2512.3,2511.8,3.98112]
[1730488102840,5.9705545,2512.3,2512.1,3.98058]
[1730488103044,13.301689,2512.2,2512.1,7.96118]
[1730488103242,3.91794129,2512.6,2512.2,3.98045]
[1730488103401,12.31720543,2512.5,2512.2,3.98046]
[1730488103601,8.887797,2512.4,2512.2,7.96092]
[1730488104322,3.0,2512.3,2512.2,7.96092]
[1730488104526,6.881018,2512.3,2512.2,7.96092]
[1730488105039,5.368142,2512.3,2512.2,7.96092]
[1730488105240,3.0,2512.5,2512.4,3.98025]
[1730488105543,6.153198,2512.5,2512.4,3.98025]
[1730488107705,6.153198,2512.5,2512.3,3.98038]
[1730488107907,2.9705545,2512.6,2512.3,3.98038]
[1730488107908,9.260029,2512.4,2512.3,3.98038]
[1730488108440,6.640351,2512.4,2512.3,3.98038]
[1730488108684,3.50582803,2512.7,2512.6,3.97994]
[1730488108685,3.0,2512.7,2512.6,3.97994]
[1730488108950,3.0,2512.6,2512.5,3.98008]
[1730488109249,5.9705545,2512.6,2512.5,3.98008]
[1730488109539,3.0,2512.8,2512.6,3.97984]
[1730488109842,11.574471,2512.7,2512.6,3.97984]
[1730488110253,11.574471,2512.7,2512.2,3.98043]
[1730488110456,5.9705545,2512.4,2512.3,3.98041]
[1730488110623,6.56760995,2512.4,2512.3,3.98041]
[1730488110823,3.0,2512.3,2511.8,3.98111]
[1730488111023,3.0,2512.3,2511.9,3.98091]
[1730488111332,3.0,2512.0,2511.9,3.98091]
[1730488111517,3.0,2512.0,2511.8,7.96222]
[1730488111720,3.63939545,2512.0,2511.8,3.9811]
[1730488112555,3.63939545,2512.0,2511.9,3.98105]
[1730488112850,18.33418745,2512.0,2511.8,3.9811]
[1730488113010,3.63939545,2512.0,2511.8,3.9811]
[1730488113212,3.63939545,2512.0,2511.9,3.98105]
[1730488113514,14.73229945,2512.0,2511.9,3.98105]
[1730488113719,3.0,2512.0,2511.9,3.98105]
[1730488113928,5.88951934,2512.4,2512.2,3.98057]
[1730488114142,6.89922484,2512.4,2512.0,0.07961044]
[1730488114307,6.89922484,2512.4,2511.5,0.8087]
[1730488114308,2.9705545,2512.1,2511.9,3.98098]
[1730488114509,2.9705545,2512.1,2512.0,3.98089]
[1730488114710,7.1636885,2512.1,2512.0,3.98089]
[1730488114948,4.193134,2512.1,2512.0,3.98089]
[1730488115162,15.206797,2512.3,2512.1,3.9807]
[1730488115359,18.85851963,2512.3,2512.1,3.9807]
[1730488115555,10.125125,2512.2,2512.1,3.9807]
[1730488116252,8.639868,2512.2,2512.1,3.9807]
[1730488116460,5.91881392,2512.3,2512.2,3.98055]
[1730488116760,7.323525,2512.3,2512.2,3.98055]
[1730488117972,3.0,2512.3,2512.2,3.98055]
[1730488118259,7.228981,2512.3,2512.2,3.98055]
[1730488118635,3.0,2512.5,2512.4,3.98022]
[1730488118833,6.663065,2512.5,2512.4,3.98022]
[1730488119231,8.01814509,2512.5,2512.1,3.98066]
[1730488119433,3.0,2512.3,2512.1,3.98066]
[1730488119642,3.0,2512.3,2511.9,3.98098]
[1730488119828,3.0,2511.9,2511.8,3.98117]
[1730488120024,3.0,2511.9,2511.7,3.9813]
[1730488120256,3.88893684,2511.9,2511.8,3.9812]
[1730488120570,5.92081961,2512.1,2511.9,3.98089]
[1730488120734,3.0,2511.9,2511.6,3.98152]
[1730488121060,3.0,2511.9,2511.8,3.9812]
[1730488121288,3.0,2512.0,2511.8,7.96233]
[1730488121430,3.59208196,2512.0,2511.8,7.96233]
[1730488121634,3.59208196,2512.0,2511.9,3.98105]
[1730488121942,6.32043696,2512.0,2511.9,3.98105]
[1730488123236,6.32043696,2512.0,2511.8,3.98112]
[1730488123443,6.51290157,2512.0,2511.9,3.98105]
[1730488123640,9.10932396,2512.0,2511.9,3.98105]
[1730488124044,7.84648496,2512.0,2511.9,3.98105]
[1730488124268,7.254403,2512.0,2511.9,3.98105]
[1730488124466,0.4234,2511.9,2511.0,0.8041]
[1730488124667,3.0,2511.8,2511.6,3.98151]
[1730488124854,3.0,2511.8,2511.6,7.96296]
[1730488125055,3.0,2511.8,2511.6,7.96289]
[1730488125440,3.0,2511.8,2511.6,3.98144]
[1730488125835,3.0,2511.6,2511.0,0.8041]
[1730488126033,5.9230351,2511.6,2511.3,3.98191]
[1730488126231,3.0,2511.4,2511.3,3.98191]
[1730488126438,3.0,2511.5,2511.3,3.98191]
[1730488126947,3.0,2511.5,2511.4,3.98184]
[1730488127176,15.733217,2511.5,2511.4,3.98184]
[1730488127382,13.582191,2511.5,2511.4,3.98184]
[1730488128350,9.659912,2511.5,2511.4,3.98184]
[1730488128548,3.0,2511.6,2511.4,3.98184]
[1730488128757,3.0,2511.6,2511.5,3.98165]
[1730488128967,0.4234,2512.2,2511.9,3.98105]
[1730488129167,10.67836,2512.1,2511.9,3.98095]
[1730488129370,10.67836,2512.1,2511.9,7.96192]
[1730488129567,10.67836,2512.1,2512.0,3.98089]
[1730488129898,10.67836,2512.1,2511.9,3.98095]
[1730488129899,15.00568872,2512.1,2511.9,3.98095]
[1730488130120,17.67971477,2512.0,2511.9,3.98095]
[1730488130260,13.02091777,2512.0,2511.9,3.98095]
[1730488130862,10.1008205,2512.0,2511.9,3.98095]
[1730488131062,11.7939065,2512.0,2511.9,3.98095]
[1730488131358,5.9705545,2512.0,2511.9,3.98095]
[1730488131557,3.0,2512.0,2511.9,3.98095]
[1730488132494,3.0,2512.1,2512.0,3.98087]
[1730488132701,6.63932827,2512.1,2512.0,3.98089]
[1730488132861,9.55910643,2512.1,2511.8,3.98105]
[1730488133053,3.0,2511.9,2511.8,3.98105]
[1730488133299,12.145014,2511.9,2511.8,3.98105]
[1730488133498,7.768345,2511.9,2511.8,3.98105]
[1730488133665,9.22311609,2511.9,2511.7,3.98126]
[1730488133908,20.609173,2511.8,2511.7,3.98126]
[1730488134114,3.0,2511.7,2511.6,3.98142]
[1730488134343,5.9705545,2511.7,2511.6,3.98142]
[1730488134644,3.0,2511.6,2511.5,3.98154]
[1730488135347,3.0,2511.6,2511.0,0.7867]
[1730488135520,3.0,2511.6,2511.3,3.98191]
[1730488135709,3.0,2511.6,2511.3,3.9819]
[1730488136044,1.02670481,2511.5,2511.4,3.98169]
[1730488137724,3.0,2511.6,2511.5,3.98168]
[1730488138824,2.91563739,2511.9,2511.6,3.98152]
[1730488139055,5.88619189,2512.0,2511.8,3.9812]
[1730488139257,4.917472,2511.9,2511.8,3.9812]
[1730488139447,4.917472,2511.9,2511.6,7.96289]
[1730488139762,2.9705545,2511.7,2511.6,3.98149]
[1730488140057,3.0,2511.6,2511.4,3.98181]
[1730488140220,25.706659,2511.6,2511.4,3.98181]
[1730488140424,19.128479,2511.5,2511.4,3.98181]
[1730488140659,16.217521,2511.5,2511.4,3.98181]
[1730488140959,18.47023229,2511.5,2511.3,3.98185]
[1730488141121,2.25271129,2511.5,2511.3,7.96374]
[1730488141325,3.0,2511.3,2510.7,3.98295]
[1730488141554,5.9705545,2511.1,2511.0,3.98245]
[1730488141726,3.0,2511.0,2510.9,3.98262]
[1730488142064,13.585058,2511.0,2510.9,3.98262]
[1730488142263,13.585058,2511.0,2510.8,3.98275]
[1730488142425,5.38754236,2511.0,2510.6,3.98308]
[1730488142762,5.38754236,2511.0,2510.4,3.98329]
[1730488142763,3.0,2510.7,2510.4,3.98329]
[1730488143057,5.9705545,2510.5,2510.4,3.98329]
[1730488143358,14.0264625,2510.5,2510.4,3.98329]
[1730488143567,3.0,2510.4,2509.9,3.98413]
[1730488144040,3.0,2510.4,2510.3,3.98343]
[1730488144359,5.793033,2510.4,2510.3,3.98343]
[1730488144560,3.0,2510.8,2510.6,3.98297]
[1730488144774,9.86923,2510.8,2510.6,3.98297]
[1730488144923,19.230025,2510.7,2510.3,0.8167]
[1730488145138,3.0,2510.5,2510.2,3.98361]
[1730488145642,3.0,2510.2,2510.0,3.98397]
[1730488145947,3.0,2510.2,2509.8,3.98428]
[1730488146183,3.0,2510.2,2509.8,7.96856]
[1730488146479,3.0,2509.9,2509.7,3.98445]
[1730488146775,3.0,2509.9,2509.8,3.98438]
[1730488147374,34.1635382,2509.9,2509.4,3.9849]
[1730488147708,34.1635382,2509.9,2509.0,3.9856]
[1730488147709,3.0,2509.4,2509.0,3.9856]
[1730488147983,3.0,2509.1,2508.8,3.98587]
[1730488148142,23.665256,2509.3,2508.8,7.97176]
[1730488148143,6.809282,2508.9,2508.8,7.97176]
[1730488148493,6.809282,2508.9,2508.8,3.98587]
[1730488148645,3.0,2509.4,2509.3,3.98515]
[1730488148944,3.0,2509.5,2509.1,0.753]
[1730488149275,3.0,2509.5,2509.3,3.98517]
[1730488149487,3.0,2509.3,2509.1,7.9708]
[1730488149780,3.7232682,2509.5,2509.2,3.98533]
[1730488149979,3.0,2509.3,2509.2,3.98533]
[1730488150155,8.299669,2509.3,2509.2,3.98533]
[1730488150345,18.353861,2509.3,2509.2,3.98533]
[1730488150542,13.04094392,2509.3,2509.2,3.98533]
[1730488150776,13.04094392,2509.3,2509.1,3.98547]
[1730488150777,11.133231,2509.3,2509.1,3.98547]
[1730488151072,23.504376,2509.2,2509.1,3.98547]
[1730488151279,23.041658,2509.2,2509.1,3.98547]
[1730488151484,5.147812,2509.2,2509.1,3.98547]
[1730488151640,0.7232682,2509.5,2509.1,3.98547]
[1730488151641,3.0,2509.5,2509.1,3.98547]
[1730488151844,4.9559502,2509.9,2509.5,3.98473]
[1730488151845,3.0,2509.8,2509.5,3.98473]
[1730488152070,17.26901,2509.7,2509.5,3.98473]
[1730488152269,6.809282,2509.6,2509.4,3.98488]
[1730488152441,14.524767,2509.5,2509.4,3.98488]
[1730488152853,11.022458,2509.5,2509.4,3.98488]
[1730488153086,12.505632,2509.5,2509.4,3.98488]
[1730488153781,10.071413,2509.5,2509.4,3.98488]
[1730488154187,3.0,2509.8,2509.7,3.98444]
[1730488154503,16.850216,2509.8,2509.5,3.98477]
[1730488154656,27.467535,2509.7,2509.6,3.98464]
[1730488155000,16.8830085,2509.7,2509.6,3.98464]
[1730488155295,5.725378,2509.7,2509.6,3.98464]
[1730488155977,9.53466,2509.7,2509.5,3.98477]
[1730488156173,14.205446,2509.6,2509.5,7.96954]
[1730488156428,0.55,2509.5,2508.8,3.98596]
[1730488156701,0.55,2509.5,2508.7,0.8087]
[1730488156702,3.0,2509.2,2508.7,0.8087]
[1730488156990,3.0,2508.9,2508.7,3.98612]
[1730488157194,3.0,2508.7,2508.5,3.98635]
[1730488157350,3.5356452,2508.7,2508.5,3.98635]
[1730488157551,3.809282,2508.7,2508.5,3.98635]
[1730488157753,22.512379,2508.6,2508.4,3.98651]
[1730488158071,22.512379,2508.6,2507.9,4.76992]
[1730488158072,3.0,2508.6,2508.0,3.98721]
[1730488158269,3.0,2508.6,2508.3,3.98666]
[1730488158655,3.0,2508.6,2508.1,3.98693]
[1730488158873,3.0,2508.3,2507.9,7.97466]
[1730488159073,3.0,2508.0,2507.9,3.9873]
[1730488159277,29.391619,2508.0,2507.7,3.98761]
[1730488159453,0.55,2507.6,2507.3,3.98825]
[1730488159805,0.55,2507.6,2507.1,3.98859]
[1730488159806,3.0,2507.4,2507.1,3.98859]
[1730488159951,3.0,2507.4,2507.1,3.98858]
[1730488160169,3.0,2507.4,2506.8,4.75163]
[1730488160471,3.0,2507.7,2507.5,3.98802]
[1730488160672,3.0,2507.5,2507.2,7.97686]
[1730488160895,3.0,2507.3,2507.2,3.98841]
[1730488161107,5.633487,2507.3,2507.2,3.98841]
[1730488162210,3.809282,2507.8,2506.8,4.75163]
[1730488162211,3.0,2507.7,2507.6,3.98787]
[1730488162416,0.55,2507.9,2507.8,3.98745]
[1730488162717,3.0,2507.8,2507.7,3.98769]
[1730488162873,19.791766,2507.8,2507.7,3.98769]
[1730488163076,18.219858,2507.8,2507.6,3.98787]
[1730488163414,19.115217,2507.7,2507.6,3.98787]
[1730488164019,11.815929,2507.7,2507.6,3.98787]
[1730488164186,1.92445299,2508.3,2508.0,3.98717]
[1730488164374,30.205342,2508.2,2508.0,7.97431]
[1730488164576,30.205342,2508.2,2508.0,3.98714]
[1730488164577,11.326256,2508.2,2508.0,3.98714]
[1730488164911,10.119608,2508.2,2508.1,3.98708]
[1730488165218,1.61702501,2508.3,2508.1,3.98708]
[1730488165513,1.00015489,2508.3,2508.2,3.98692]
[1730488165671,4.232682,2509.0,2508.1,3.98708]
[1730488165672,31.094039,2508.9,2508.1,3.98708]
[1730488165873,4.232682,2509.0,2508.5,7.97268]
[1730488166071,25.76380801,2508.9,2508.7,3.98609]
[1730488166310,16.199687,2508.8,2508.7,3.52476149]
[1730488166496,16.199687,2508.8,2508.5,7.9727]
[1730488166691,16.199687,2508.8,2508.6,3.98622]
[1730488167077,3.809282,2508.7,2508.3,3.98667]
[1730488167276,3.0,2508.5,2508.3,3.98667]
[1730488167479,11.962914,2508.4,2508.3,3.98667]
[1730488167678,3.0,2508.5,2508.4,3.98649]
[1730488167878,3.0,2508.6,2508.4,3.98649]
[1730488168112,14.147594,2508.5,2508.4,3.98649]
[1730488168407,6.191369,2508.5,2508.4,3.98649]
[1730488168712,6.191369,2508.5,2507.9,4.81372]
[1730488168713,3.0,2508.4,2508.2,3.98678]
[1730488169112,9.660296,2508.3,2508.2,3.98678]
[1730488169275,9.544256,2508.3,2508.2,3.98678]
[1730488169992,5.397256,2508.3,2508.2,3.98678]
[1730488170195,2.397256,2508.3,2508.2,3.98678]
[1730488170407,3.0,2508.6,2508.5,3.98642]
[1730488170599,10.59135,2508.6,2508.5,3.98642]
[1730488170782,11.470566,2508.6,2508.5,3.98642]
[1730488171110,3.0,2508.5,2508.3,7.9733]
[1730488171458,7.359919,2508.4,2508.3,3.98663]
[1730488171720,7.316622,2508.4,2508.3,3.98663]
[1730488172219,0.55,2508.8,2508.5,3.98644]
[1730488172375,3.55,2508.6,2508.5,3.98644]
[1730488172576,10.776395,2508.6,2508.5,3.98644]
[1730488173114,10.776395,2508.6,2508.4,3.98657]
[1730488173283,18.897742,2508.5,2508.4,3.98657]
[1730488173489,18.511742,2508.5,2508.4,3.98657]
[1730488173888,3.0,2508.4,2508.1,3.987]
[1730488174077,20.174142,2508.4,2508.2,3.98676]
[1730488174281,33.350623,2508.3,2507.6,4.78079]
[1730488174506,3.4234,2508.3,2507.6,4.78079]
[1730488174813,0.55,2508.2,2507.6,3.98778]
[1730488175122,7.53725,2508.0,2507.5,3.98803]
[1730488175326,3.9734,2507.7,2507.3,3.98822]
[1730488175533,7.359282,2507.5,2507.2,3.98838]
[1730488175694,3.0,2507.3,2507.2,3.98838]
[1730488175895,0.55,2507.2,2506.8,3.99012]
[1730488176096,3.0,2507.0,2506.8,3.99006]
[1730488176318,3.0,2507.1,2506.9,3.98899]
[1730488176593,16.045365,2507.0,2506.9,3.98899]
[1730488176892,0.55,2507.3,2507.0,3.98868]
[1730488177087,3.0,2507.1,2507.0,3.98883]
[1730488177428,5.983172,2507.1,2507.0,3.98883]
[1730488177935,6.6364892,2507.1,2506.9,3.98897]
[1730488178156,0.6533172,2507.1,2507.0,3.98883]